Cogmind - Beta 13 @@@ ROGUE MODE // 2024.04.10 @ 01:39:24 Player: kucifra Result: Self-destructed Performance ------------- Evolutions (2) 1000 Regions Visited (4) 800 Robots Destroyed (19) 95 Value Destroyed (412) 412 Prototype IDs (1) 20 Alien Tech Used (0) 0 Bonus (0) 0 TOTAL SCORE: 2327 Bonus ------- None Cogmind --------- Core Integrity 550/550 Matter 8/300 Energy 98/100 System Corruption 0% Temperature Cool (4) Movement Flying (32) Location -8/Materials Parts ------- > --- POWER (1) -------- (None) > --- PROPULSION (3) --- VTOL Module VTOL Module > --- UTILITY (5) ------ Transport Network Coupler Core Shielding > --- WEAPON (2) ------- (None) > --- INVENTORY (5) ---- Ion Engine Grenade Launcher Peak State ------------ > --- POWER ------------ Ion Engine > --- PROPULSION ------- Light Treads Light Treads > --- UTILITY ---------- Large Storage Unit Experimental Sensor Array > --- WEAPON ----------- Light Assault Rifle Grenade Launcher > --- INVENTORY -------- Light Ion Engine Light Ion Engine Aluminum Leg Aluminum Leg Large Storage Unit Structural Scanner Structural Scanner Transport Network Coupler Core Shielding Core Shielding Power Shielding Assault Rifle Light Cannon Grenade Launcher Grenade Launcher [Rating: 16] Favorites ----------- Power Ion Engine Engine Ion Engine Propulsion Light Treads Treads Light Treads Flight Unit VTOL Module Utility Core Shielding Device Structural Scanner Storage Large Storage Unit Processor Transport Network Coupler Protection Core Shielding Weapon Light Assault Rifle Energy Gun EM Pulse Gun Ballistic Gun Light Assault Rifle Ballistic Cannon Light Cannon Launcher Grenade Launcher Build | -11 -10 -10 -9 -8 ------- Run | Yrd Mat Min Mat Mat Slots Evolved 4 | . . . 2 2 Power . | . . . . . Propulsion 1 | . . . . 1 Utility 3 | . . . 2 1 Weapon . | . . . . . Parts Attached 38 | 6 10 7 15 . Power 3 | 1 . . 2 . Engine 3 | 1 . . 2 . Core . | . . . . . Reactor . | . . . . . Propulsion 9 | 2 2 . 5 . Treads 5 | 2 2 . 1 . Leg . | . . . . . Wheel . | . . . . . Hover . | . . . . . Flight 4 | . . . 4 . Utility 9 | 1 3 2 3 . Device 2 | . . 1 1 . Storage 2 | 1 1 . . . Processor 1 | . . . 1 . Hackware . | . . . . . Protection 4 | . 2 1 1 . Artifact . | . . . . . Weapon 17 | 2 5 5 5 . Energy Gun 1 | 1 . . . . Energy Cannon . | . . . . . Ballistic Gun 7 | 1 3 1 2 . Ballistic Cannon 4 | . 2 1 1 . Launcher 5 | . . 3 2 . Special Weapon . | . . . . . Impact Weapon . | . . . . . Slashing Weapon . | . . . . . Piercing Weapon . | . . . . . Special Melee Weapon . | . . . . . Unidentified Prototypes 1 | . . 1 . . Parts Lost 11 | . . . 11 . Power 2 | . . . 2 . Propulsion 5 | . . . 5 . Utility 1 | . . . 1 . Weapon 3 | . . . 3 . Highest Loss Streak 9 | . . . 9 . To Critical Strikes . | . . . . . Average Slot Usage (%) 93 | . 91 100 90 . Engine 12 | . 14 14 10 . Treads 23 | . 26 28 15 . Device 2 | . . . 10 . Storage 12 | . 14 14 10 . Protection 12 | . 7 14 19 . Energy Gun 1 | . 2 . . . Ballistic Gun 12 | . 13 13 10 . Ballistic Cannon 7 | . 11 . 6 . Launcher 4 | . . 14 2 . Naked Turns . | . . . . . Heaviest Build 32 | 14 32 32 32 1 Greatest Support 40 | 40 40 40 40 8 Greatest Overweight (x) 9 | 1 9 . 8 . Average Overweight (x) . | . . . . . Largest Inventory Capacity 15 | 8 15 15 15 5 Average Capacity 12 | 7 11 15 14 5 Most Carried 15 | 3 15 15 15 2 Average Carried 10 | 1 8 14 13 2 Final Capacity 15 | 8 15 15 5 5 Final Carried 15 | 3 13 15 2 2 Class Distribution -------------------- 84% | Mutant 12% | Scavenger-Mutant Dominant Class ---------------- Mutant | -10/Materials Mutant | -10/Mines Scavenger-Mutant | -9/Materials Scavenger-Mutant | -8/Materials Resources | -11 -10 -10 -9 -8 ----------- Run | Yrd Mat Min Mat Mat Matter Collected 712 | 212 344 41 115 . Remotely . | . . . . . Salvage Created 524 | . 331 81 112 . Parts 37 | . 21 12 4 . Haulers Intercepted 2 | . 2 . . . Recyclers Shooed . | . . . . . Parts Field Recycled . | . . . . . Retrieved Matter . | . . . . . Parts Self-Destructed . | . . . . . Prevented . | . . . . . Kills | -11 -10 -10 -9 -8 ------- Run | Yrd Mat Min Mat Mat Combat Hostiles Destroyed 14 | . 5 5 4 . Guns 7 | . 5 1 1 . Cannons 3 | . . 2 1 . AOE 4 | . . 2 2 . Classes Destroyed 7 | . 5 1 1 . Builder 1 | . 1 . . . Tunneler 1 | . . 1 . . Hauler 2 | . 2 . . . Recycler 1 | . 1 . . . Swarmer 6 | . 3 3 . . Grunt 6 | . 2 2 2 . Sentry 2 | . . . 2 . Best Kill Streak 5 | . 5 3 1 . Combat Bots Only 5 | . 5 3 1 . Max Kills in Single Turn 2 | . 2 2 1 . Gunslinging 1 | . 1 . . . Exploded 1 | . . 1 1 . Melee . | . . . . . Uniques/NPCs Destroyed . | . . . . . Combat | -11 -10 -10 -9 -8 -------- Run | Yrd Mat Min Mat Mat Hostile Shots Fired 145 | . 23 10 112 . Missed 38 | . 5 2 31 . Damage Taken 1483 | . 216 123 1144 . Core 289 | . 39 5 245 . Absorbed by Shields . | . . . . . Redirected to Shielding 55 | . . 1 54 . Core Remaining (%) 73 | 100 . 82 38 . Volleys Fired 73 | . 37 7 29 . Largest 2 | . 2 2 2 . Hottest 70 | . 70 60 55 . Shots Fired 136 | . 74 14 48 . Gun 81 | . 42 3 36 . Cannon 37 | . 32 3 2 . Launcher 18 | . . 8 10 . Special . | . . . . . Kinetic 106 | . 62 6 38 . Thermal . | . . . . . Explosive 18 | . . 8 10 . Electromagnetic 12 | . 12 . . . Robot Hit Streak 14 | . 10 5 14 . Robot Miss Streak 4 | . 4 2 2 . Penetration Max . | . . . . . Secondary Targets 1 | . 1 . . . Max Gunslinging Chain 1 | . 1 . . . Shots Hit Robots 88 | . 39 9 40 . Core Hits 40 | . 16 11 13 . Critical Kills . | . . . . . Critical Parts Destroyed . | . . . . . Critical Strikes 2 | . 1 . 1 . Destroy 1 | . . . 1 . Corrupt 1 | . 1 . . . Melee Attacks . | . . . . . Impact . | . . . . . Slashing . | . . . . . Piercing . | . . . . . Sneak Attacks . | . . . . . Combat Hostiles . | . . . . . Follow-up Attacks . | . . . . . Damage Inflicted 1483 | . 537 321 625 . Guns 674 | . 310 37 327 . Cannons 274 | . 219 38 17 . Explosions 527 | . . 246 281 . Melee . | . . . . . Ramming 8 | . 8 . . . Kinetic 817 | . 398 75 344 . Thermal . | . . . . . Explosive 527 | . . 246 281 . Electromagnetic 131 | . 131 . . . Impact . | . . . . . Slashing . | . . . . . Piercing . | . . . . . Highest Corruption . | . . . . . Average Corruption . | . . . . . Corruption Purged . | . . . . . Corruption Blocked . | . . . . . Overload Shots . | . . . . . Overflow Damage 11 | . 8 . 3 . Projectiles 8 | . 8 . . . Explosions 3 | . . . 3 . Melee . | . . . . . Knockbacks 2 | . 2 . . . Impact . | . . . . . Kinetic 2 | . 2 . . . Secondary . | . . . . . Self-Inflicted Damage 74 | . . 39 35 . Shots 2 | . . 1 1 . Rammed 1 | . 1 . . . Targets Rammed 1 | . 1 . . . Kicked . | . . . . . Crushed . | . . . . . Highest Temperature 117 | . 117 27 8 . Average Temperature 23 | . 30 19 4 . Received Heat Transfer 615 | . 117 27 471 . Siege Activations . | . . . . . Robots Corrupted . | . . . . . Combat Hostiles . | . . . . . Parts Fried . | . . . . . Impact Corruptions . | . . . . . Robots Melted . | . . . . . Combat Hostiles . | . . . . . Parts Melted . | . . . . . Heat Transferred . | . . . . . Parts Sabotaged . | . . . . . Parts Stolen . | . . . . . Parts Stripped . | . . . . . Power Chain Reactions . | . . . . . Alert | -11 -10 -10 -9 -8 ------- Run | Yrd Mat Min Mat Mat Peak Influence 221 | . 135 181 221 39 Initial 70 | . . 28 70 39 Average 99 | . 71 142 121 39 Maximum Alert Level 1 | . . . 1 . Low Security (%) 99 | 100 100 100 98 100 Level 1 . | . . . 1 . Level 2 . | . . . . . Level 3 . | . . . . . Level 4 . | . . . . . Level 5 . | . . . . . High Security . | . . . . . Max Security . | . . . . . Squads Dispatched 2 | . . . 2 . Investigation 1 | . . . 1 . Extermination . | . . . . . Reinforcement 1 | . . . 1 . Assault . | . . . . . Garrison . | . . . . . Intercept . | . . . . . Searches Triggered . | . . . . . Construction Impeded . | . . . . . Haulers Reinforced . | . . . . . Active Scanning Responses . | . . . . . Cargo Convoy Interrupts . | . . . . . Stealth | -11 -10 -10 -9 -8 --------- Run | Yrd Mat Min Mat Mat Distress Signals 3 | . 2 . 1 . Communications Jammed . | . . . . . Distress Signals . | . . . . . Times Spotted 30 | . 12 4 14 . Peak Tracking Total 10 | . 7 3 10 . Tactical Retreats 1 | . . . 1 . Traps | -11 -10 -10 -9 -8 ------- Run | Yrd Mat Min Mat Mat Traps Triggered 3 | . 2 . 1 . Indirectly . | . . . . . Trap Hack Attempts . | . . . . . Triggered . | . . . . . Disarmed . | . . . . . Reprogrammed . | . . . . . Reused . | . . . . . Traps Extracted . | . . . . . Installed . | . . . . . Triggered . | . . . . . Machines | -11 -10 -10 -9 -8 ---------- Run | Yrd Mat Min Mat Mat Machines Disabled 1 | . 1 . . . Max in Single Turn 1 | . 1 . . . Machines Repaired . | . . . . . Machines Dismantled . | . . . . . Machines Sabotaged . | . . . . . Overloaded Fab Kills . | . . . . . Hacking | -11 -10 -10 -9 -8 --------- Run | Yrd Mat Min Mat Mat Machines Accessed 7 | . 3 . 4 . Terminals 6 | . 3 . 3 . Fabricators . | . . . . . Repair Stations . | . . . . . Recycling Units . | . . . . . Scanalyzers 1 | . . . 1 . Garrison Access . | . . . . . Total Hacks 13 | . 4 . 9 . Successful 5 | . 2 . 3 . Failed 8 | . 2 . 6 . Catastrophic 2 | . 1 . 1 . Database Lockouts . | . . . . . Manual 11 | . 8 . 3 . Terminals 10 | . 4 . 6 . Fabricators . | . . . . . Repair Stations . | . . . . . Recycling Units . | . . . . . Scanalyzers 3 | . . . 3 . Garrison Access . | . . . . . Terminal Hacks 3 | . 2 . 1 . Robot Analysis 1 | . 1 . . . Hauler Manifests 2 | . 1 . 1 . Fabricator Hacks . | . . . . . Repair Station Hacks . | . . . . . Recycling Unit Hacks . | . . . . . Scanalyzer 2 | . . . 2 . Insert Component 1 | . . . 1 . Analyze 1 | . . . 1 . Garrison Access Hacks . | . . . . . Unauthorized Hacks . | . . . . . Terminals . | . . . . . Fabricators . | . . . . . Repair Stations . | . . . . . Recycling Units . | . . . . . Scanalyzers . | . . . . . Garrison Access . | . . . . . Data Cores Recovered . | . . . . . Used . | . . . . . Hacking Detections 5 | . 1 . 4 . Full Trace Events 1 | . . . 1 . Feedback Events . | . . . . . Feedback Blocked . | . . . . . Robot Schematics Acquired . | . . . . . Robots Built . | . . . . . Authchips . | . . . . . Time . | . . . . . Total Robot Build Rating . | . . . . . Part Schematics Acquired 1 | . . . 1 . Parts Built . | . . . . . Authchips . | . . . . . Time . | . . . . . Total Part Build Rating . | . . . . . Parts Repaired . | . . . . . Time . | . . . . . Parts Recycled . | . . . . . Recycled Matter . | . . . . . Retrieved Matter . | . . . . . Retrieved Components . | . . . . . Parts Scanalyzed 1 | . . . 1 . Part Schematics Acquired 1 | . . . 1 . Parts Damaged . | . . . . . Bothacking | -11 -10 -10 -9 -8 ------------ Run | Yrd Mat Min Mat Mat Used RIF Installer . | . . . . . Robots Hacked . | . . . . . Non-combat . | . . . . . Combat . | . . . . . Robot Hacks Applied . | . . . . . Relay Couplers Released . | . . . . . Fabnet Peak Effective % . | . . . . . Robots Rewired . | . . . . . Allies Hacked . | . . . . . Hacks Repelled . | . . . . . Allies | -11 -10 -10 -9 -8 -------- Run | Yrd Mat Min Mat Mat Total Allies . | . . . . . Largest Group . | . . . . . Highest-Rated Group . | . . . . . Highest-Rated Ally . | . . . . . Total Orders . | . . . . . Ally Attacks . | . . . . . Total Damage . | . . . . . Kills . | . . . . . Allies Corrupted . | . . . . . Allies Melted . | . . . . . Intel | -11 -10 -10 -9 -8 ------- Run | Yrd Mat Min Mat Mat Robot Analysis Total 1 | . 1 . . . Derelict Logs Recovered 1 | . . 1 . . Drone Launches . | . . . . . Drone Recoveries . | . . . . . Exploration | -11 -10 -10 -9 -8 ------------- Run | Yrd Mat Min Mat Mat Turns Passed 1650 | 62 750 394 443 1 Spaces Moved 901 | 35 368 225 270 3 Core 12 | 5 5 . 2 . Treads 786 | 30 363 225 168 . Legs . | . . . . . Wheels . | . . . . . Hover . | . . . . . Flight 103 | . . . 100 3 Fastest Speed 32 | 50 160 160 32 32 Average Speed 150 | 147 164 160 126 32 Slowest Speed 500 | 160 500 160 450 32 Overloaded Moves . | . . . . . Propulsion Burnouts . | . . . . . Robots Hopped 3 | . . . 3 . Cave-ins Triggered . | . . . . . Exploration Rate (%) 31 | 3 55 57 37 3 Regions Visited 4 Branch Regions 1 Pre-discovered Areas . | . . . . . Known Exits Taken . | . . . . . Unknown Exits Taken 4 | 1 1 1 1 . Scrap Searched . | . . . . . Spaces Dug . | . . . . . Terrain Destroyed 98 | . . 44 54 . Melee . | . . . . . Projectile . | . . . . . AOE 98 | . . 44 54 . Terrain Rammed . | . . . . . Walls Destroyed . | . . . . . Machines Disabled . | . . . . . Actions | -11 -10 -10 -9 -8 --------- Run | Yrd Mat Min Mat Mat Total 1050 | 43 440 242 322 3 Wait 2 | . 1 . 1 . Move 891 | 34 367 224 263 3 Hop 3 | . . . 3 . Pick Up 30 | 3 18 3 6 . Fast Attach 9 | 6 2 . 1 . Attach 12 | . 4 . 8 . Detach 1 | . 1 . . . Swap 17 | . 4 7 6 . Drop 11 | . 5 1 5 . Fire 73 | . 37 7 29 . Melee . | . . . . . Ram . | . . . . . Kick . | . . . . . Crush 1 | . 1 . . . Escape Stasis . | . . . . . Rewire . | . . . . . Trap . | . . . . . Miscellaneous . | . . . . . Route ------- -11/Scrapyard -10/Materials (discovered 2 exits: *Mat / [*Min]) -10/Mines -9/Materials (discovered 2 exits: [*Mat] / [*Min]) -8/Materials (discovered 1 exit: Sto) History --------- Turn | Location | Event 27 | -11/Scrapyard | Discovered new exit (range 15) 63 | -11/Scrapyard | Entered Materials 99 | -10/Materials | Discovered new exit (range 15) 240 | -10/Materials | Discovered new exit (range 15) 302 | -10/Materials | Build established: Mutant 813 | -10/Materials | Entered Mines 1025 | -10/Mines | Found a damaged Exp. Sensor Array with a note attached 1029 | -10/Mines | Found Prototype Device 1030 | -10/Mines | Identified Exp. Sensor Array 1040 | -10/Mines | Discovered new exit (range 13) 1095 | -10/Mines | Found a hidden stash of uninstalled traps 1207 | -10/Mines | Entered Materials 1207 | -9/Materials | Evolved 2 slots: Utility x2 1635 | -9/Materials | Discovered new exit (range 14) 1644 | -9/Materials | Core integrity fell below 50% 1644 | -9/Materials | Discovered new exit (range 16) 1650 | -9/Materials | Entered another Materials area 1650 | -8/Materials | Evolved 2 slots: Propulsion x1, Utility x1 1651 | -8/Materials | Identified exit to Storage 1651 | -8/Materials | Self-destructed Last Messages --------------- U-05 Engineer builds a Wall. G-47 Trooper suffers critical hit (Burn). Dropped Lrg. Storage Unit. VTOL Module destroyed. Structural Scanner destroyed. Acquired 14 matter. U-05 Engineer builds a Wall. K-01 Serf collects debris. R-06 Scavenger collects Sml. Laser. EXIT=FOUND Lgt. Ion Engine destroyed. EXIT=FOUND Triggered Shock Trap. The floor emits a surge of raw power. System corrupted (+1). PARAMETERS=PROPULSION+1,UTILITY+1 LOCATION=UNKNOWN GOAL=ESCAPE Loading 1 Storage entrance... T-07 Excavator is excavating. Map ----- +----------------------------------------------------+ | | | | | | | | | | | | | | | | | | | | | | | | | | | | | | | | | | | | | | | | | ???????????????##############?????????????????? | | ???????????????# #?????????????????? | | ???????????????# "" !! #?????????????????? | | ???????????????# S"" !! #?????????????????? | | ???????????????# "" ! #?????????????????? | | ???????????????# @ #?????????????????? | | ???????????????#######/##########?????????????? | | ??????????????????# ?????????? | | ??????????????????# ?????????? | | ??????????????????# ?????????? | | ??????????????????####t##### ##??????????? | | ????????????????????? ##????? #???????????? | | ?????????????????????#????????!![[#???????????? | | ????????????????????????????????[[#???????????? | | ?????????????????????????????????##???????????? | | ??????????????????????????????????????????????? | | ??????????????????????????????????????????????? | | ??????????????????????????????????????????????? | | ??????????????????????????????????????????????? | | ??????????????????????????????????????????????? | | ??????????????????????????????????????????????? | | ??????????????????????????????????????????????? | | ??????????????????????????????????????????????? | | ??????????????????????????????????????????????? | | ??????????????????????????????????????????????? | | ??????????????????????????????????????????????? | | ??????????????????????????????????????>??a????? | | ????????????????????????????????????a?????????? | | ??????????????????????????????????????????????? | | ??????????????????????????????????????????????? | +----------------------------------------------------+ Best States ------------- Heat Dissipation 28 Energy Generation 10 Energy Capacity 250 Matter Stores 300 Matter Capacity 300 Sight Range 16 Terrain Scan Density 10 Core Shielding 20 Power Shielding 33 Evasion (%) 63 Recoil Reduction 2 Item Schematics ----------------- VTOL Module | -9/Materials | Scanalyzed Robot Schematics ------------------ None Fabricated ------------ Nothing Alien Tech Used ----------------- None Achievements -------------- None Challenges ------------ None Game ------ Seed StormNovaTerrabomb Manual? 0 Play Time 00:17:52 Cumulative 12.9 hours Start 2024.04.10 @ 01:21:41 End 2024.04.10 @ 01:39:24 Sessions 1 Manual Loads 0 Difficulty Rogue Special Mode None Game No. 20 Rogue 20 Adventurer 0 Explorer 0 Win Type - Total 0 Types 0/0/0/0/0/0/0/0/0 Lore% 17 Gallery% 22 Achievement% 22 Wizard Run 0 Options --------- Layout 1 ASCII 0 Keyboard 0 Movement Arrows Keybinds 0 Fullscreen 1 Font 24/Smallcaps Map View 50x35 Zoom Use 0% Tactical HUD 0 Map Filters NONE Filters NONE Steam 1 RUN: 37fa6040-6705-41b6-b7e5-8d6969775667